fUSD/lending_fUSD_20251001
["ID","MTS","AMOUNT","RATE_DAILY","PERIOD"]
[388645476,1759296658255,-151.0,0.00019,2]
[388645477,1759296658267,-151.0,0.00019,2]
[388645478,1759296658276,-246.119494,0.00019,2]
[388645479,1759296658284,-246.119494,0.00019,2]
[388645480,1759296658294,-246.119494,0.00019,2]
[388645481,1759296658303,-265.065136,0.00019,2]
[388645482,1759296658312,-246.119494,0.00019,2]
[388645483,1759296658321,-246.119494,0.00019,2]
[388645484,1759296658331,-246.119494,0.00019,2]
[388645485,1759296658340,-246.119494,0.00019,2]
[388645486,1759296658349,-246.119494,0.00019,2]
[388645487,1759296658358,-246.119494,0.00019,2]
[388645488,1759296658367,-246.119494,0.00019,2]
[388645489,1759296658377,-151.0,0.00019,2]
[388645490,1759296658386,-160.876987,0.00019,2]
[388645491,1759296658395,-246.119494,0.00019,2]
[388645492,1759296658404,-151.0,0.00019,2]
[388645493,1759296658413,-246.119495,0.00019,2]
[388645494,1759296658422,-151.0,0.00019,2]
[388645495,1759296658431,-151.0,0.00019,2]
[388645496,1759296658440,-151.0,0.00019,2]
[388645497,1759296658450,-151.0,0.00019,2]
[388645498,1759296658459,-152.748199,0.00019,2]
[388645499,1759296658468,-259.44165,0.00019,2]
[388645500,1759296658477,-259.44165,0.00019,2]
[388645501,1759296658486,-259.44165,0.00019,2]
[388645502,1759296658495,-445.679129,0.00019,2]
[388645503,1759296658505,-445.679129,0.00019,2]
[388645504,1759296658515,-259.44165,0.00019,2]
[388645505,1759296658525,-445.679129,0.00019,2]
[388645506,1759296658535,-259.44165,0.00019,2]
[388645507,1759296658544,-259.44165,0.00019,2]
[388645508,1759296658553,-445.679129,0.00019,2]
[388645509,1759296658563,-445.679129,0.00019,2]
[388645510,1759296658572,-259.44165,0.00019,2]
[388645511,1759296658581,-445.679129,0.00019,2]
[388645512,1759296658590,-259.44165,0.00019,2]
[388645513,1759296658599,-259.44165,0.00019,2]
[388645514,1759296658609,-445.679129,0.00019,2]
[388645515,1759296658618,-445.679129,0.00019,2]
[388645516,1759296658626,-259.44165,0.00019,2]
[388645517,1759296658635,-445.679129,0.00019,2]
[388645518,1759296658646,-259.44165,0.00019,2]
[388645519,1759296658656,-259.441645,0.00019,2]
[388645520,1759296658671,-445.679129,0.00019,2]
[388645521,1759296658680,-445.679129,0.00019,2]
[388645522,1759296658690,-445.679137,0.00019,2]
[388645523,1759296658702,-151.0,0.00019,2]
[388645524,1759296658713,-151.0,0.00019,2]
[388645525,1759296658722,-151.0,0.00019,2]
[388645526,1759296658734,-1922.203863,0.00019,2]
[388645527,1759296658744,-1922.203863,0.00019,2]
[388645528,1759296658756,-1922.203863,0.00019,2]
[388645529,1759296658765,-1922.203863,0.00019,2]
[388645530,1759296658775,-1922.203863,0.00019,2]
[388645531,1759296658784,-1922.203863,0.00019,2]
[388645532,1759296658794,-1922.203863,0.00019,2]
[388645533,1759296658803,-412.107837,0.00019,2]
[388645534,1759296658812,-151.0,0.00019,2]
[388645535,1759296658820,-1922.203863,0.00019,2]
[388645536,1759296658835,-153.030573,0.00019,2]
[388645537,1759296658844,-1922.203863,0.00019,2]
[388645538,1759296658853,-412.107837,0.00019,2]
[388645539,1759296658862,-412.107837,0.00019,2]
[388645540,1759296658872,-1922.203863,0.00019,2]
[388645541,1759296658881,-412.107837,0.00019,2]
[388645542,1759296658891,-1922.203863,0.00019,2]
[388645543,1759296658901,-1922.203856,0.00019,2]
[388645544,1759296658911,-396.208266,0.00019,2]
[388645545,1759296658922,-412.107837,0.00019,2]
[388645546,1759296658932,-396.208272,0.00019,2]
[388645547,1759296658941,-412.107837,0.00019,2]
[388645548,1759296658950,-412.107837,0.00019,2]
[388645549,1759296658959,-412.107837,0.00019,2]
[388645550,1759296658968,-412.107837,0.00019,2]
[388645551,1759296658978,-412.107833,0.00019,2]
[388645552,1759296658988,-151.0,0.00019,2]
[388645553,1759296658998,-151.0,0.00019,2]
[388645554,1759296659007,-151.0,0.00019,2]
[388645555,1759296659016,-266.328045,0.00019,2]
[388645556,1759296659027,-151.0,0.00019,2]
[388645557,1759296659036,-619.726659,0.00019,2]
[388645558,1759296659045,-151.0,0.00019,2]
[388645559,1759296659055,-619.726659,0.00019,2]
[388645560,1759296659064,-151.0,0.00019,2]
[388645561,1759296659074,-619.726659,0.00019,2]
[388645562,1759296659083,-277.551532,0.00019,2]
[388645563,1759296659093,-619.726659,0.00019,2]
[388645564,1759296659102,-619.726659,0.00019,2]
[388645565,1759296659111,-619.726659,0.00019,2]
[388645566,1759296659121,-619.726659,0.00019,2]
[388645567,1759296659130,-619.726659,0.00019,2]
[388645568,1759296659139,-619.726659,0.00019,2]
[388645569,1759296659149,-156.255874,0.00019,2]
[388645570,1759296659159,-156.255874,0.00019,2]
[388645571,1759296659168,-156.255874,0.00019,2]
[388645572,1759296659177,-619.726659,0.00019,2]
[388645573,1759296659187,-619.726659,0.00019,2]
[388645574,1759296659196,-151.0,0.00019,2]
[388645575,1759296659206,-619.726668,0.00019,2]
[388645576,1759296659335,-156.255874,0.00019,2]
[388645577,1759296659345,-151.0,0.00019,2]
[388645578,1759296659354,-151.0,0.00019,2]
[388645579,1759296659363,-156.255874,0.00019,2]
[388645580,1759296659373,-156.255874,0.00019,2]
[388645581,1759296659382,-151.0,0.00019,2]
[388645582,1759296659392,-151.0,0.00019,2]
[388645583,1759296659401,-156.255874,0.00019,2]
[388645584,1759296659411,-151.0,0.00019,2]
[388645585,1759296659420,-151.0,0.00019,2]
[388645586,1759296659429,-156.255874,0.00019,2]
[388645587,1759296659438,-157.902041,0.00019,2]
[388645588,1759296659448,-156.255874,0.00019,2]
[388645589,1759296659457,-188.130322,0.00019,2]
[388645590,1759296659467,-151.0,0.00019,2]
[388645591,1759296659476,-151.0,0.00019,2]
[388645592,1759296659485,-151.0,0.00019,2]
[388645593,1759296659494,-156.255874,0.00019,2]
[388645594,1759296659503,-156.255874,0.00019,2]
[388645595,1759296659512,-156.255878,0.00019,2]
[388645596,1759296659521,-282.443355,0.00019,2]
[388645597,1759296659531,-188.130322,0.00019,2]
[388645598,1759296659540,-151.0,0.00019,2]
[388645599,1759296659550,-151.0,0.00019,2]
[388645600,1759296659560,-151.0,0.00019,2]
[388645601,1759296659569,-188.130322,0.00019,2]
[388645602,1759296659579,-1672.704564,0.00019,2]
[388645603,1759296659588,-151.0,0.00019,2]
[388645604,1759296659597,-1672.704564,0.00019,2]
[388645605,1759296659607,-151.0,0.00019,2]
[388645606,1759296659616,-1672.704564,0.00019,2]
[388645607,1759296659625,-151.0,0.00019,2]
[388645608,1759296659634,-1672.704564,0.00019,2]
[388645609,1759296659644,-1672.704564,0.00019,2]
[388645610,1759296659653,-1672.704564,0.00019,2]
[388645611,1759296659666,-151.0,0.00019,2]
[388645612,1759296659675,-151.0,0.00019,2]
[388645613,1759296659685,-151.0,0.00019,2]
[388645614,1759296659694,-151.0,0.00019,2]
[388645615,1759296659709,-151.0,0.00019,2]
[388645616,1759296659720,-195.060433,0.00019,2]
[388645617,1759296659731,-151.0,0.00019,2]
[388645618,1759296659743,-151.825785,0.00019,2]
[388645619,1759296659752,-1672.704564,0.00019,2]
[388645620,1759296659762,-195.060433,0.00019,2]
[388645621,1759296659771,-152.218465,0.00019,2]
[388645622,1759296659781,-151.0,0.00019,2]
[388645623,1759296659790,-195.060433,0.00019,2]
[388645624,1759296659799,-1672.704564,0.00019,2]
[388645625,1759296659808,-1672.704564,0.00019,2]
[388645626,1759296659818,-151.0,0.00019,2]
[388645627,1759296659827,-195.060433,0.00019,2]
[388645628,1759296659836,-151.0,0.00019,2]
[388645629,1759296659846,-195.060433,0.00019,2]
[388645630,1759296659855,-1672.704564,0.00019,2]
[388645631,1759296659864,-151.0,0.00019,2]
[388645632,1759296659873,-195.060433,0.00019,2]
[388645633,1759296659882,-195.060433,0.00019,2]
[388645634,1759296659891,-195.060433,0.00019,2]
[388645635,1759296659900,-195.060433,0.00019,2]
[388645636,1759296659909,-1672.704564,0.00019,2]
[388645637,1759296659919,-151.0,0.00019,2]
[388645638,1759296659928,-195.060433,0.00019,2]
[388645639,1759296659937,-1672.704557,0.00019,2]
[388645640,1759296659946,-151.0,0.00019,2]
[388645641,1759296659955,-151.0,0.00019,2]
[388645642,1759296659964,-151.0,0.00019,2]
[388645643,1759296659973,-151.0,0.00019,2]
[388645644,1759296659982,-195.060433,0.00019,2]
[388645645,1759296659992,-151.0,0.00019,2]
[388645646,1759296660001,-195.060424,0.00019,2]
[388645647,1759296660010,-188.130322,0.00019,2]
[388645648,1759296660020,-151.0,0.00019,2]
[388645649,1759296660031,-151.0,0.00019,2]
[388645650,1759296660041,-188.130322,0.00019,2]
[388645651,1759296660051,-151.0,0.00019,2]
[388645652,1759296660060,-151.0,0.00019,2]
[388645653,1759296660071,-151.931563,0.00019,2]
[388645654,1759296660085,-450.050682,0.00019,2]
[388645655,1759296660098,-450.050682,0.00019,2]
[388645656,1759296660113,-450.050682,0.00019,2]
[388645657,1759296660122,-188.130322,0.00019,2]
[388645658,1759296660132,-450.050682,0.00019,2]
[388645659,1759296660142,-450.050682,0.00019,2]
[388645660,1759296660151,-450.050682,0.00019,2]
[388645661,1759296660161,-450.050682,0.00019,2]
[388645662,1759296660170,-450.050682,0.00019,2]
[388645663,1759296660179,-450.050682,0.00019,2]
[388645664,1759296660189,-195.718516,0.00019,2]
[388645665,1759296660198,-195.718516,0.00019,2]
[388645666,1759296660208,-450.050682,0.00019,2]
[388645667,1759296660218,-195.718516,0.00019,2]
[388645668,1759296660227,-450.050682,0.00019,2]
[388645669,1759296660237,-450.05068742,0.00019,2]
[388645670,1759296660247,-151.0,0.00019,2]
[388645671,1759296660256,-195.718516,0.00019,2]
[388645672,1759296660266,-172.993213,0.00019,2]
[388645673,1759296660277,-195.718516,0.00019,2]
[388645674,1759296660286,-172.993213,0.00019,2]
[388645675,1759296660296,-195.718516,0.00019,2]
[388645676,1759296660305,-172.993213,0.00019,2]
[388645677,1759296660315,-195.718516,0.00019,2]
[388645678,1759296660324,-172.993213,0.00019,2]
[388645679,1759296660333,-195.718516,0.00019,2]
[388645680,1759296660342,-172.993213,0.00019,2]
[388645681,1759296660352,-195.718516,0.00019,2]
[388645682,1759296660361,-172.993213,0.00019,2]
[388645683,1759296660370,-195.718516,0.00019,2]
[388645684,1759296660379,-172.993213,0.00019,2]
[388645685,1759296660389,-195.718516,0.00019,2]
[388645686,1759296660398,-172.993213,0.00019,2]
[388645687,1759296660407,-195.71852,0.00019,2]
[388645688,1759296660417,-172.993213,0.00019,2]
[388645689,1759296660426,-172.993213,0.00019,2]
[388645690,1759296660435,-172.993213,0.00019,2]
[388645691,1759296660444,-172.993209,0.00019,2]
[388645692,1759296660454,-188.130322,0.00019,2]
[388645693,1759296660463,-313.745528,0.00019,2]
[388645694,1759296660472,-313.745528,0.00019,2]
[388645695,1759296660482,-313.745528,0.00019,2]
[388645696,1759296660491,-313.745528,0.00019,2]
[388645697,1759296660500,-313.745528,0.00019,2]
[388645698,1759296660510,-313.745528,0.00019,2]
[388645699,1759296660519,-188.130322,0.00019,2]
[388645700,1759296660530,-313.745528,0.00019,2]
[388645701,1759296660539,-313.745528,0.00019,2]
[388645702,1759296660550,-313.745528,0.00019,2]
[388645703,1759296660559,-188.130322,0.00019,2]
[388645704,1759296660568,-313.745528,0.00019,2]
[388645705,1759296660578,-313.745528,0.00019,2]
[388645706,1759296660589,-313.745533,0.00019,2]
[388645707,1759296660599,-151.0,0.00019,2]
[388645708,1759296660608,-151.0,0.00019,2]
[388645709,1759296660619,-151.0,0.00019,2]
[388645710,1759296660628,-151.0,0.00019,2]
[388645711,1759296660639,-151.0,0.00019,2]
[388645712,1759296660651,-195.019248,0.00019,2]
[388645713,1759296660664,-154.631264,0.00019,2]
[388645714,1759296660675,-154.631264,0.00019,2]
[388645715,1759296660684,-154.631264,0.00019,2]
[388645716,1759296660694,-154.631264,0.00019,2]
[388645717,1759296660703,-154.631264,0.00019,2]
[388645718,1759296660715,-154.631264,0.00019,2]
[388645719,1759296660724,-154.631264,0.00019,2]
[388645720,1759296660737,-154.631264,0.00019,2]
[388645721,1759296660746,-154.631264,0.00019,2]
[388645722,1759296660755,-154.631264,0.00019,2]
[388645723,1759296660766,-154.631264,0.00019,2]
[388645724,1759296660775,-154.631255,0.00019,2]
[388645725,1759296660784,-188.130322,0.00019,2]
[388645726,1759296660793,-188.130322,0.00019,2]
[388645727,1759296660804,-188.13033,0.00019,2]
[388645728,1759296660813,-151.0,0.00019,2]
[388645729,1759296660822,-151.0,0.00019,2]
[388645730,1759296660831,-151.0,0.00019,2]
[388645731,1759296660840,-151.0,0.00019,2]
[388645732,1759296660850,-151.0,0.00019,2]
[388645733,1759296660859,-151.0,0.00019,2]
[388645734,1759296660868,-151.0,0.00019,2]
[388645735,1759296660877,-151.0,0.00019,2]
[388645736,1759296660887,-200.889394,0.00019,2]
[388645737,1759296660896,-151.0,0.00019,2]
[388645738,1759296660905,-151.0,0.00019,2]
[388645739,1759296660914,-151.0,0.00019,2]
[388645740,1759296660923,-151.0,0.00019,2]
[388645741,1759296660932,-151.0,0.00019,2]
[388645742,1759296660941,-151.0,0.00019,2]
[388645743,1759296660950,-197.516661,0.00019,2]
[388645744,1759296660959,-151.0,0.00019,2]
[388645745,1759296660968,-151.0,0.00019,2]
[388645746,1759296660977,-151.0,0.00019,2]
[388645747,1759296660986,-364.455021,0.00019,2]
[388645748,1759296660995,-364.455021,0.00019,2]
[388645749,1759296661003,-234.986646,0.00019,2]
[388645750,1759296661012,-364.455021,0.00019,2]
[388645751,1759296661022,-364.455021,0.00019,2]
[388645752,1759296661031,-364.455021,0.00019,2]
[388645753,1759296661040,-364.455021,0.00019,2]
[388645754,1759296661048,-364.455021,0.00019,2]
[388645755,1759296661058,-364.455021,0.00019,2]
[388645756,1759296661067,-151.0,0.00019,2]
[388645757,1759296661075,-364.455021,0.00019,2]
[388645758,1759296661084,-151.0,0.00019,2]
[388645759,1759296661093,-151.0,0.00019,2]
[388645760,1759296661103,-364.455021,0.00019,2]
[388645761,1759296661113,-364.455021,0.00019,2]
[388645762,1759296661122,-364.455016,0.00019,2]
[388645763,1759296661131,-243.027019,0.00019,2]
[388645764,1759296661141,-151.0,0.00019,2]
[388645765,1759296661150,-151.0,0.00019,2]
[388645766,1759296661159,-151.0,0.00019,2]
[388645767,1759296661168,-151.0,0.00019,2]
[388645768,1759296661177,-151.0,0.00019,2]
[388645769,1759296661186,-151.0,0.00019,2]
[388645770,1759296661195,-151.0,0.00019,2]
[388645771,1759296661204,-151.0,0.00019,2]
[388645772,1759296661213,-151.0,0.00019,2]
[388645773,1759296661222,-151.0,0.00019,2]
[388645774,1759296661231,-151.0,0.00019,2]
[388645775,1759296661240,-151.0,0.00019,2]
[388645776,1759296661249,-204.325694,0.00019,2]
[388645777,1759296661258,-204.325694,0.00019,2]
[388645778,1759296661268,-204.325694,0.00019,2]
[388645779,1759296661278,-204.325694,0.00019,2]
[388645780,1759296661287,-204.325694,0.00019,2]
[388645781,1759296661297,-204.325694,0.00019,2]
[388645782,1759296661308,-204.325694,0.00019,2]
[388645783,1759296661318,-204.325694,0.00019,2]
[388645784,1759296661328,-204.325694,0.00019,2]
[388645785,1759296661337,-204.325694,0.00019,2]
[388645786,1759296661347,-204.325694,0.00019,2]
[388645787,1759296661356,-204.325704,0.00019,2]
[388645788,1759296661365,-151.0,0.00019,2]
[388645789,1759296661375,-151.0,0.00019,2]
[388645790,1759296661384,-151.0,0.00019,2]
[388645791,1759296661393,-213.270935,0.00019,2]
[388645792,1759296661403,-151.0,0.00019,2]
[388645793,1759296661681,-203.273801,0.00019,2]
[388645794,1759296661746,-151.0,0.00019,2]
[388645795,1759296661756,-151.0,0.00019,2]
[388645796,1759296661765,-151.0,0.00019,2]
[388645797,1759296661774,-268.253854,0.00019,2]
[388645798,1759296661784,-268.253854,0.00019,2]
[388645799,1759296661794,-268.253854,0.00019,2]
[388645800,1759296661806,-268.253854,0.00019,2]
[388645801,1759296661815,-268.253854,0.00019,2]
[388645802,1759296661826,-268.253854,0.00019,2]
[388645803,1759296661836,-268.253854,0.00019,2]
[388645804,1759296661847,-268.253854,0.00019,2]
[388645805,1759296661857,-268.253854,0.00019,2]
[388645806,1759296661867,-268.253854,0.00019,2]
[388645807,1759296661877,-268.253854,0.00019,2]
[388645808,1759296661886,-268.253852,0.00019,2]
[388645809,1759296661896,-151.0,0.00019,2]
[388645810,1759296661905,-151.0,0.00019,2]
[388645811,1759296661915,-151.0,0.00019,2]
[388645812,1759296661924,-151.0,0.00019,2]
[388645813,1759296661933,-151.0,0.00019,2]
[388645814,1759296661943,-300.0,0.00019,2]
[388645815,1759296661953,-151.0,0.00019,2]
[388645816,1759296661962,-296.809479,0.00019,2]
[388645817,1759296661971,-296.809479,0.00019,2]
[388645818,1759296661981,-187.163451,0.00019,2]
[388645819,1759296661990,-151.0,0.00019,2]
[388645820,1759296661999,-151.0,0.00019,2]
[388645821,1759296662008,-296.809479,0.00019,2]
[388645822,1759296662020,-187.163451,0.00019,2]
[388645823,1759296662029,-296.809488,0.00019,2]
[388645824,1759296662039,-187.163451,0.00019,2]
[388645825,1759296662048,-452.627555,0.00019,2]
[388645826,1759296662057,-187.163449,0.00019,2]
[388645827,1759296662067,-452.627555,0.00019,2]
[388645828,1759296662077,-452.627555,0.00019,2]
[388645829,1759296662086,-452.627549,0.00019,2]
[388645830,1759296662096,-151.0,0.00019,2]
[388645831,1759296662105,-151.0,0.00019,2]
[388645832,1759296662114,-151.0,0.00019,2]
[388645833,1759296662123,-151.0,0.00019,2]
[388645834,1759296662133,-151.0,0.00019,2]
[388645835,1759296662143,-151.0,0.00019,2]
[388645836,1759296662152,-151.0,0.00019,2]
[388645837,1759296662161,-161.017144,0.00019,2]
[388645838,1759296662171,-2542.006078,0.00019,2]
[388645839,1759296662180,-2542.006078,0.00019,2]
[388645840,1759296662189,-151.0,0.00019,2]
[388645841,1759296662199,-2542.006078,0.00019,2]
[388645842,1759296662209,-2542.00607152,0.00019,2]
[388645843,1759296662218,-372.23389854,0.00019,2]
[388645844,1759296662228,-198.06591771,0.00019007,2]
[388645845,1759296662237,-264.13984,0.0001901,2]
[388645846,1759296662247,-300.42,0.00019017,2]
[388645847,1759296662256,-259.17,0.00019051,2]
[388645848,1759296662266,-500.0,0.00019062,2]
[388645849,1759296662276,-161.0,0.0001907,2]
[388645850,1759296662285,-999.99,0.00019077,2]
[388645851,1759296662294,-1023.32,0.00019077,2]
[388645852,1759296662303,-999.99,0.00019077,2]
[388645853,1759296662313,-999.99,0.00019077,2]
[388645854,1759296662322,-999.99,0.00019077,2]
[388645855,1759296662331,-1021.83,0.00019077,2]
[388645856,1759296662341,-262.5,0.00019102,2]
[388645857,1759296662350,-32863.0,0.00019123,2]
[388645858,1759296662359,-34053.0,0.00019123,2]
[388645859,1759296662369,-6414.0,0.00019123,2]
[388645860,1759296662378,-3229.25,0.00019151,2]
[388645861,1759296662388,-674.65359012,0.00019158,2]
[388645862,1759296662397,-111465.11095421,0.00019159,2]
[388645863,1759296662406,-403.07678856,0.00019159,2]
[388645864,1759296662415,-151.0,0.00019159,2]
[388645865,1759296662425,-151.0,0.00019159,2]
[388645866,1759296662434,-151.0,0.00019159,2]
[388645867,1759296662444,-231.560857,0.00019159,2]
[388645868,1759296662463,-231.560857,0.00019159,2]
[388645869,1759296662473,-231.560857,0.00019159,2]
[388645870,1759296662483,-231.560858,0.00019159,2]
[388645871,1759296662493,-531368.37162777,0.00019177,2]
[388645872,1759296662503,-3013.79073038,0.00019178,2]
[388645873,1759296662513,-200.0,0.00019178,2]
[388645874,1759296662523,-151.0,0.00019178,2]
[388645875,1759296662533,-151.0,0.00019178,2]
[388645876,1759296662544,-151.0,0.00019178,2]
[388645877,1759296662555,-151.0,0.00019178,2]
[388645878,1759296662566,-151.0,0.00019178,2]
[388645879,1759296662578,-151.0,0.00019178,2]
[388645880,1759296662590,-151.0,0.00019178,2]
[388645881,1759296662601,-151.0,0.00019178,2]
[388645882,1759296662611,-151.0,0.00019178,2]
[388645883,1759296662621,-151.0,0.00019178,2]
[388645884,1759296662631,-151.0,0.00019178,2]
[388645885,1759296662642,-151.0,0.00019178,2]
[388645886,1759296662652,-151.0,0.00019178,2]
[388645887,1759296662668,-200.600028,0.00019178,2]
[388645888,1759296662679,-5000.0,0.00019178,2]
[388645889,1759296662689,-3349.34,0.00019178,2]
[388645890,1759296662700,-489.068902,0.00019178,2]
[388645891,1759296662711,-489.068902,0.00019178,2]
[388645892,1759296662721,-489.068902,0.00019178,2]
[388645893,1759296662731,-489.068902,0.00019178,2]
[388645894,1759296662744,-489.068902,0.00019178,2]
[388645895,1759296662754,-489.068902,0.00019178,2]
[388645896,1759296662764,-489.068902,0.00019178,2]
[388645897,1759296662774,-489.068902,0.00019178,2]
[388645898,1759296662784,-489.068902,0.00019178,2]
[388645899,1759296662794,-489.068902,0.00019178,2]
[388645900,1759296662804,-489.068902,0.00019178,2]
[388645901,1759296662813,-489.068902,0.00019178,2]
[388645902,1759296662823,-489.068902,0.00019178,2]
[388645903,1759296662833,-489.068902,0.00019178,2]
[388645904,1759296662843,-489.068902,0.00019178,2]
[388645905,1759296662853,-489.068902,0.00019178,2]
[388645906,1759296662868,-489.068902,0.00019178,2]
[388645907,1759296662879,-489.068902,0.00019178,2]
[388645908,1759296662890,-489.068902,0.00019178,2]
[388645909,1759296662901,-489.068902,0.00019178,2]
[388645910,1759296662912,-182.7109848,0.000192,2]
[388645911,1759296662922,-500.0,0.0001922,2]
[388645912,1759296662933,-180.0,0.00019289,2]
[388645913,1759296662948,-20041.75106456,0.00019289,2]
[388645914,1759296662958,-259.17,0.00019325,2]
[388645915,1759296662968,-500.0,0.00019336,2]
[388645916,1759296662978,-1056.3528008,0.00019377,2]
[388645917,1759296662988,-182.7109848,0.000194,2]
[388645918,1759296662999,-630.80881729,0.00019412,2]
[388645919,1759296663010,-473.55,0.00019425,2]
[388645920,1759296663021,-806.89,0.00019425,2]
[388645921,1759296663031,-806.89,0.00019425,2]
[388645922,1759296663042,-473.55,0.00019425,2]
[388645923,1759296663053,-226.21,0.0001946,2]
[388645924,1759296663063,-283.2,0.00019474,2]
[388645925,1759296663074,-19403.98,0.000195,2]
[388645926,1759296663084,-225.83,0.000195,2]
[388645927,1759296663095,-707.75,0.000195,2]
[388645928,1759296663105,-6241.42273866,0.000195,2]
[388645929,1759296663116,-264.13984,0.0001951,2]
[388645930,1759296663126,-259.17,0.00019599,2]
[388645931,1759296663136,-1101.69,0.000196,2]
[388645932,1759296663147,-500.0,0.0001961,2]
[388645933,1759296663157,-1887.7190581,0.00019644,2]
[388645934,1759296663168,-700.0,0.00019676,2]
[388645935,1759296663179,-1314.17471114,0.000197,2]
[388645936,1759296663190,-88530.71,0.00019726,2]
[388645937,1759296663201,-156.587,0.00019726,2]
[388645938,1759296663211,-500.0,0.00019768,2]
[388645939,1759296663221,-1101.69,0.000198,2]
[388645940,1759296663231,-19403.98,0.000198,2]
[388645941,1759296663242,-225.83,0.000198,2]
[388645942,1759296663257,-707.75,0.000198,2]
[388645943,1759296663268,-353.57,0.00019816,2]
[388645944,1759296663278,-432.49,0.00019816,2]
[388645945,1759296663290,-412.48,0.00019816,2]
[388645946,1759296663301,-412.48,0.00019816,2]
[388645947,1759296663312,-412.48,0.00019816,2]
[388645948,1759296663323,-259.21,0.00019873,2]
[388645949,1759296663333,-500.0,0.00019884,2]
[388645950,1759296663343,-20041.75106456,0.00019891,2]
[388645951,1759296663353,-257145.63331621,0.000199,2]
[388645952,1759296663363,-2470.70793091,0.000199,2]
[388645953,1759296663373,-931.88932681,0.0001995,15]
[388645954,1759296663383,-514.0,0.0001997,2]
[388645955,1759296663393,-36498.01162453,0.0001999,2]
[388645956,1759296663403,-545.48219258,0.0002,5]
[388645957,1759296663415,-150.0,0.0002,2]
[388645958,1759296663425,-190.22,0.0002,2]
[388645959,1759296663436,-150.0,0.0002,2]
[388645960,1759296663446,-201.024,0.0002,2]
[388645961,1759296663455,-2823.81821399,0.0002,2]
[388645962,1759296663466,-8685.70516372,0.0002,2]
[388645963,1759296663476,-4000.0,0.0002,4]
[388645964,1759296663485,-264.13984,0.0002001,2]
[388645965,1759296663495,-170.96,0.00020033,2]
[388645966,1759296663506,-334.5472959,0.00020046,2]
[388645967,1759296663516,-277.35679052,0.0002007,2]
[388645968,1759296663527,-1924.62356906,0.00020071,2]
[388645969,1759296663538,-630.80881729,0.00020135,2]
[388645970,1759296663548,-421.2070557,0.00020137,2]
[388645971,1759296663559,-500.0,0.00020158,2]
[388645972,1759296663569,-150.0,0.00020161,2]
[388645973,1759296663579,-366.0,0.00020164,2]
[388645974,1759296663590,-283.2,0.0002017,2]
[388645975,1759296663600,-16406.0,0.0002019,2]